bitfinex/quotes_SOLUSD_20220118
["timestamp","ask_amount","ask_price","bid_price","bid_amount"]
[1642529282898,2.936,136.16,136.11,0.25]
[1642529283098,4.98000822,136.17,136.11,0.25]
[1642529283299,2.04200822,136.16,136.11,0.25]
[1642529284200,2.04200822,136.17,136.1,47.59111894]
[1642529284400,2.938,136.16,136.12,11.0201]
[1642529285102,4.98000822,136.16,136.12,11.0201]
[1642529285303,2.04200822,136.16,136.12,11.0201]
[1642529286803,2.04200822,136.17,136.12,11.0201]
[1642529288629,2.04200822,136.17,136.13,0.25]
[1642529289029,2.04200822,136.17,136.1,47.59111894]
[1642529289229,2.938,136.16,136.1,47.59111894]
[1642529289830,2.04200822,136.15,136.1,58.61301894]
[1642529290235,2.04200822,136.15,136.11,0.25]
[1642529291434,2.04200822,136.15,136.11,11.2712]
[1642529291632,2.04200822,136.14,136.11,11.2712]
[1642529292033,2.04200822,136.14,136.09,10.47]
[1642529292535,2.04200822,136.14,136.06,2.938]
[1642529292735,3.189,136.13,136.05,36.7442]
[1642529292935,3.189,136.13,136.06,39.62364933]
[1642529293135,13.06640822,136.12,136.06,39.62364933]
[1642529293334,2.939,136.11,136.06,39.62364933]
[1642529293538,2.939,136.11,136.07,11.0243]
[1642529293736,2.939,136.11,136.06,39.62364933]
[1642529294237,4.98100822,136.11,136.06,39.62364933]
[1642529294440,2.04200822,136.11,136.06,39.62364933]
[1642529294938,6.0,136.1,136.05,11.0258]
[1642529295138,2.939,136.09,136.03,10.47]
[1642529295342,11.251,136.09,136.03,10.47]
[1642529295940,6.0,136.08,136.03,56.82485105]
[1642529296141,6.0,136.08,136.03,67.85235105]
[1642529297141,6.0,136.08,136.03,21.4975]
[1642529297344,17.0276,136.08,136.0,2.939]
[1642529297542,3.19,136.07,135.98,2.94]
[1642529297742,3.19,136.07,135.97,49.30589004]
[1642529297943,6.0,136.06,135.97,49.30589004]
[1642529298142,2.94,136.05,135.97,49.30589004]
[1642529298344,13.9702,136.05,135.99,11.0301]
[1642529298543,2.94,136.05,135.99,11.0301]
[1642529298743,2.94,136.06,135.99,11.0301]
[1642529299744,2.94,136.06,136.0,0.25]
[1642529299944,2.94,136.06,136.01,11.0286]
[1642529300146,2.94,136.07,136.01,11.0286]
[1642529301145,2.94,136.07,136.02,0.25]
[1642529301347,2.04200822,136.09,136.03,41.58782371]
[1642529301546,2.04200822,136.09,136.04,11.0252]
[1642529301748,2.04200822,136.09,136.04,11.2752]
[1642529302546,16.00750822,136.11,136.04,11.2752]
[1642529302947,6.0,136.1,136.04,11.2752]
[1642529303148,2.939,136.09,136.04,11.2752]
[1642529303352,8.939,136.1,136.04,11.2752]
[1642529303550,19.9651,136.1,136.04,11.0252]
[1642529303750,0.25,136.09,136.03,11.0275]
[1642529303957,2.939,136.08,136.03,11.0275]
[1642529304951,2.939,136.08,136.03,46.34222937]
[1642529305754,13.9668,136.08,136.02,21.4983]
[1642529305952,6.0,136.07,136.02,21.4983]
[1642529306982,2.94,136.06,136.02,10.47]
[1642529307982,2.94,136.06,136.02,21.4981]
[1642529308381,13.9679,136.08,136.02,21.4981]
[1642529308581,2.94,136.08,136.02,21.4981]
[1642529309287,2.94,136.09,136.04,11.0261]
[1642529311284,0.25,136.08,136.04,11.0261]
[1642529311484,0.25,136.08,136.03,11.0274]
[1642529311684,2.939,136.07,136.03,11.0274]
[1642529313485,2.939,136.07,136.01,36.63992035]
[1642529313887,0.25,136.06,136.01,36.63992035]
[1642529314088,2.94,136.05,136.01,36.63992035]
[1642529314288,5.605,136.06,136.0,10.47]
[1642529314485,2.94,136.05,135.98,10.47]
[1642529314691,3.19,136.05,135.98,10.47]
[1642529315288,6.0,136.04,135.99,36.09230314]
[1642529315488,2.94,136.03,135.99,36.09230314]
[1642529317090,2.94,136.03,135.99,47.12290314]
[1642529317690,2.94,136.03,136.0,0.25]
[1642529317890,6.0,136.04,136.0,0.25]
[1642529317891,6.0,136.04,136.01,0.5]
[1642529318093,5.56439993,136.03,136.01,0.5]
[1642529318491,5.56439993,136.03,136.0,0.25]
[1642529319492,5.56439993,136.03,136.0,11.2798]
[1642529319692,5.56439993,136.03,136.01,0.5]
[1642529319895,2.94,136.07,136.01,0.5]
[1642529320893,6.0,136.06,136.01,0.5]
[1642529321095,2.94,136.05,136.0,0.25]
[1642529321497,2.94,136.05,135.98,10.47]
[1642529321693,2.94,136.05,135.99,0.25]
[1642529321895,2.94,136.05,135.96,10.47]
[1642529322094,11.0327,136.02,135.97,11.0323]
[1642529322294,2.941,136.01,135.97,11.2823]
[1642529323597,2.941,136.03,135.97,11.2823]
[1642529323797,13.973,136.03,135.97,11.2823]
[1642529323996,6.0,136.02,135.97,11.2823]
[1642529324195,2.941,136.03,135.97,11.2823]
[1642529324396,2.941,136.04,135.97,11.2823]
[1642529324596,2.04200822,136.05,135.97,16.01235272]
[1642529324798,2.04200822,136.05,135.98,10.47]
[1642529324999,2.04200822,136.05,136.0,11.0284]
[1642529325195,2.04200822,136.05,136.01,42.3050963]
[1642529325797,2.04200822,136.06,136.01,42.3050963]
[1642529326298,2.04200822,136.06,136.01,53.3335963]
[1642529326499,13.07140822,136.06,136.01,11.0285]
[1642529326698,13.07140822,136.06,135.98,50.1714]
[1642529326899,2.94,136.05,135.99,0.25]
[1642529327501,2.94,136.06,135.99,0.25]
[1642529327700,23.5988,136.05,135.99,0.25]
[1642529327901,2.94,136.04,135.99,0.25]
[1642529328101,13.971,136.04,135.99,11.0306]
[1642529328303,13.971,136.04,136.0,0.25]
[1642529328504,13.971,136.04,135.97,46.71027047]
[1642529328703,0.25,136.03,135.97,46.71027047]
[1642529328903,2.941,136.02,135.97,46.71027047]
[1642529329103,2.941,136.02,135.97,57.74257047]
[1642529329304,2.941,136.02,135.97,13.9723]
[1642529329514,6.25,136.01,135.97,2.94]
[1642529329704,2.941,136.0,135.92,2.07179004]
[1642529329903,11.168,136.0,135.92,2.07179004]
[1642529330109,11.0361,135.98,135.92,13.10789004]
[1642529330307,2.942,135.97,135.93,37.80913234]
[1642529331304,2.942,135.98,135.94,11.2845]
[1642529331506,6.0,135.99,135.94,13.07355272]
[1642529331907,2.942,136.0,135.94,13.07355272]
[1642529335209,2.941,136.01,135.94,11.2845]
[1642529335607,2.941,136.01,135.94,13.07355272]
[1642529335807,2.04200822,136.03,135.95,10.47]
[1642529336007,2.941,136.04,135.95,10.47]
[1642529336008,4.98300822,136.04,135.97,11.0296]
[1642529336309,4.98300822,136.04,135.98,45.27203001]
[1642529336709,4.98300822,136.04,135.98,0.25]
[1642529337008,4.98300822,136.04,135.96,39.7053]
[1642529337210,2.941,136.04,135.97,0.25]
[1642529337814,2.941,136.04,135.97,37.04780675]
[1642529338014,6.0,136.03,135.97,37.04780675]
[1642529338215,6.0,136.03,135.98,11.0313]
[1642529339513,6.0,136.03,135.94,39.7127]
[1642529339514,2.941,136.02,135.93,4.73005272]
[1642529339713,3.191,136.02,135.93,10.47]
[1642529339914,2.941,136.02,135.93,10.47]
[1642529340318,2.941,136.02,135.94,49.97048099]
[1642529340517,13.9736,136.02,135.95,10.47]
[1642529340714,13.9736,136.02,135.95,10.72]
[1642529340914,2.941,136.02,135.95,10.72]
[1642529341114,2.941,136.02,135.95,10.47]
[1642529341314,2.941,136.03,135.96,0.25]
[1642529341914,13.9733,136.03,135.96,11.2828]
[1642529342315,6.0,136.02,135.96,11.2828]
[1642529342518,2.941,136.01,135.96,11.2828]
[1642529343115,2.941,136.01,135.96,0.25]
[1642529343517,2.941,136.01,135.95,0.25]
[1642529343518,6.0,136.0,135.95,0.25]
[1642529343919,17.0347,136.0,135.93,2.941]
[1642529344116,3.191,135.99,135.93,2.941]
[1642529344315,9.191,135.99,135.93,2.941]
[1642529345017,9.191,135.99,135.94,36.07492429]
[1642529345316,11.0365,135.98,135.94,36.07492429]
[1642529345518,6.0,135.97,135.94,36.07492429]
[1642529345716,11.0365,135.98,135.94,36.07492429]
[1642529345919,8.941,135.99,135.94,36.07492429]
[1642529346117,26.06330822,136.0,135.95,11.2837]
[1642529346316,29.00430822,136.0,135.95,11.2837]
[1642529346518,26.9623,136.0,135.95,11.2837]
[1642529346918,26.9623,136.0,135.95,11.0337]
[1642529348023,2.941,136.0,135.95,11.0337]
[1642529348319,2.941,136.01,135.97,11.0315]
[1642529348518,2.941,136.02,135.97,11.0315]
[1642529348721,3.191,136.02,135.97,11.0315]
[1642529348920,2.941,136.02,135.97,11.0315]
[1642529349421,2.941,136.02,135.96,11.0331]
[1642529349620,26.96670822,136.04,135.96,11.0331]
[1642529349621,2.941,136.03,135.96,11.0331]
[1642529350021,6.0,136.02,135.96,11.0331]
[1642529350221,13.9744,136.01,135.96,11.0331]
[1642529350423,13.9744,136.01,135.94,36.07492429]
[1642529350627,13.9744,136.01,135.95,11.0336]
[1642529350822,6.25,136.0,135.94,36.07492429]
[1642529351021,2.941,135.99,135.94,36.07492429]
[1642529351622,2.941,136.02,135.94,47.10952429]
[1642529352024,2.941,136.02,135.94,59.36857701]
[1642529352225,2.441,136.02,135.95,0.25]
[1642529352726,0.25,136.01,135.95,11.0332]
[1642529352922,2.941,136.0,135.92,10.47]
[1642529353723,2.941,136.0,135.92,12.25905272]
[1642529353922,2.941,136.0,135.94,11.0347]
[1642529354322,2.941,136.0,135.95,49.04800862]
[1642529354521,2.941,136.0,135.95,48.79800862]
[1642529354723,2.941,136.01,135.95,48.79800862]
[1642529354923,11.0342,136.0,135.95,48.79800862]
[1642529355149,2.941,135.99,135.95,48.79800862]
[1642529356051,6.0,135.98,135.92,21.5061]
[1642529356252,2.942,135.97,135.92,21.5061]
[1642529357052,2.942,135.97,135.92,49.13609922]
[1642529357253,0.25,135.96,135.92,49.13609922]
[1642529357454,2.942,135.95,135.92,49.13609922]
[1642529357651,5.56439993,135.94,135.92,49.13609922]
[1642529358856,5.56439993,135.94,135.89,13.412]
[1642529359054,5.56439993,135.94,135.89,2.942]
[1642529359255,2.943,135.93,135.89,2.942]
[1642529359454,13.9833,135.93,135.89,2.942]
[1642529359659,2.943,135.95,135.89,2.942]
[1642529359855,9.193,135.95,135.9,43.49501755]
[1642529360056,3.193,135.95,135.9,43.49501755]
[1642529360456,14.233,135.95,135.9,43.49501755]
[1642529360856,3.193,135.95,135.9,43.49501755]
[1642529363458,3.193,135.95,135.9,54.53351755]
[1642529366864,23.2694,135.96,135.91,0.25]
[1642529367064,23.2694,135.96,135.91,11.2875]
[1642529367462,13.9795,135.98,135.91,11.2875]
[1642529367664,6.0,135.97,135.91,11.2875]
[1642529367863,13.9795,135.98,135.91,11.2875]
[1642529368768,0.25,135.97,135.91,11.2875]
[1642529368970,2.942,135.96,135.91,11.2875]
[1642529369165,2.942,135.97,135.91,11.2875]
[1642529369365,2.942,135.98,135.91,11.2875]
[1642529369766,2.942,135.98,135.92,10.47]
[1642529370067,2.942,135.98,135.93,11.0337]
[1642529370266,2.04200822,136.0,135.93,11.0337]
[1642529370267,2.942,135.99,135.93,21.7537]
[1642529370467,2.04200822,136.0,135.94,4.73005272]
[1642529370666,2.04200822,136.0,135.95,52.36033322]
[1642529370867,2.04200822,136.02,135.95,54.14938594]
[1642529371566,2.04200822,136.02,135.95,65.18018594]
[1642529371768,2.941,136.03,135.97,0.90843186]
[1642529373366,197.96651714,136.04,135.97,0.90843186]
[1642529373566,208.99801714,136.04,135.98,11.031]
[1642529373768,197.96651714,136.04,135.99,0.25]
[1642529373972,195.02551714,136.04,135.99,0.25]
[1642529374570,195.02551714,136.04,136.01,43.35033068]
[1642529374772,2.04200822,136.06,136.02,0.75]
[1642529375774,2.94,136.08,136.02,0.75]
[1642529376173,2.94,136.08,136.03,11.027]
[1642529377773,36.16460822,136.09,136.04,2.939]
[1642529377774,2.04200822,136.09,136.04,2.939]
[1642529377974,2.04200822,136.09,136.05,11.0242]
[1642529378175,2.04200822,136.09,136.06,42.36859395]
[1642529378375,2.04200822,136.09,136.06,52.83859395]
[1642529378976,2.04200822,136.09,136.06,89.57839395]
[1642529379177,4.14156468,136.12,136.06,89.57839395]
[1642529379178,2.04200822,136.14,136.07,11.022]
[1642529379379,4.98100822,136.14,136.07,11.022]
[1642529379576,4.98100822,136.14,136.08,0.25]
[1642529379875,2.04200822,136.14,136.08,10.47]
[1642529380075,2.04200822,136.14,136.09,2.938]
[1642529380276,176.31325346,136.16,136.1,49.47]
[1642529380277,173.37525346,136.16,136.1,49.47]
[1642529380480,173.37525346,136.16,136.12,39.13047034]
[1642529380677,173.37525346,136.16,136.13,3.188]
[1642529380876,4.14156468,136.17,136.14,0.5]
[1642529381078,4.14156468,136.17,136.15,2.936]
[1642529381277,4.14156468,136.17,136.16,11.2656]
[1642529381479,5.82806199,136.2,136.16,14.2016]
[1642529381679,5.82806199,136.2,136.17,2.936]
[1642529381878,10.09029692,136.26,136.17,2.936]
[1642529381879,4.11344124,136.26,136.18,53.8483552]
[1642529382077,4.11344124,136.26,136.19,73.24]
[1642529382277,4.11344124,136.26,136.21,11.0099]
[1642529382478,4.11344124,136.26,136.21,16.7109]
[1642529382680,4.11344124,136.26,136.22,0.25]
[1642529383079,2.936,136.28,136.22,47.12162837]
[1642529383778,2.936,136.28,136.23,11.0101]
[1642529384183,2.936,136.28,136.24,0.25]
[1642529384383,217.80328746,136.29,136.24,0.25]
[1642529384783,2.935,136.32,136.25,11.0086]
[1642529384986,6.0,136.31,136.25,26.7176]
[1642529385184,117.135,136.33,136.26,46.39280259]
[1642529385782,117.135,136.33,136.28,11.0056]
[1642529385783,2.935,136.33,136.28,11.0056]
[1642529385982,2.934,136.34,136.28,11.0056]
[1642529386384,2.934,136.35,136.28,11.0056]
[1642529386582,8.934,136.35,136.28,11.0056]
[1642529386785,21.72975272,136.35,136.26,11.2581]
[1642529387281,2.03905272,136.34,136.26,11.0081]
[1642529387481,2.934,136.33,136.26,11.0081]
[1642529387687,0.25,136.32,136.26,11.0081]
[1642529387981,2.934,136.31,136.26,11.0081]
[1642529388182,0.25,136.3,136.26,11.0081]
[1642529388385,2.935,136.29,136.26,11.0081]
[1642529388586,2.935,136.29,136.27,0.5]
[1642529389686,2.935,136.29,136.27,11.7575]
[1642529389886,2.935,136.33,136.28,41.66381701]
[1642529390087,2.935,136.36,136.28,41.66381701]
[1642529390287,2.935,136.36,136.29,0.25]
[1642529390486,276.18257358,136.37,136.29,0.25]
[1642529390690,276.18257358,136.37,136.29,10.72]
[1642529391287,2.934,136.4,136.3,11.0047]
[1642529391489,2.934,136.4,136.31,13.402]
[1642529391689,16.99946199,136.42,136.31,13.652]
[1642529391893,5.82806199,136.42,136.32,6.0]
[1642529392091,5.82806199,136.42,136.33,13.402]
[1642529392291,204.05857801,136.45,136.34,37.08323249]
[1642529392491,203.55857801,136.45,136.35,13.402]
[1642529392691,203.55857801,136.45,136.35,13.652]
[1642529392894,201.76952529,136.45,136.35,13.652]
[1642529393090,201.76952529,136.45,136.36,6.0]
[1642529393091,198.83752529,136.45,136.36,6.0]
[1642529393291,198.83752529,136.45,136.37,13.652]
[1642529393894,198.83752529,136.45,136.38,38.91969437]
[1642529394096,198.83752529,136.45,136.39,24.3984]
[1642529394294,2.932,136.47,136.39,24.6484]
[1642529394495,2.931,136.48,136.39,24.6484]
[1642529394693,0.25,136.47,136.39,24.6484]
[1642529394893,2.931,136.46,136.39,13.652]
[1642529395494,6.25,136.45,136.39,13.402]
[1642529395895,6.25,136.45,136.39,10.47]
[1642529395896,2.932,136.44,136.39,10.47]
[1642529396098,4.72105272,136.44,136.36,10.47]
[1642529396428,6.25,136.43,136.36,10.47]
[1642529396627,2.932,136.42,136.36,58.41808559]
[1642529397829,2.932,136.42,136.37,0.25]
[1642529398227,2.932,136.45,136.37,0.25]
[1642529398433,145.09116975,136.45,136.37,3.182]
[1642529398829,145.09116975,136.45,136.38,10.47]
[1642529399028,142.15916975,136.45,136.38,21.4671]
[1642529399329,142.15916975,136.45,136.39,3.182]
[1642529399529,142.15916975,136.45,136.4,10.47]
[1642529399729,142.15916975,136.45,136.41,0.25]
[1642529399930,142.15916975,136.45,136.4,10.47]
[1642529400129,2.932,136.44,136.39,2.932]
[1642529400531,6.0,136.43,136.39,2.932]
[1642529400729,2.932,136.42,136.39,2.932]
[1642529400930,6.37045159,136.44,136.39,2.932]
[1642529401130,0.25,136.41,136.36,10.47]
[1642529401429,2.932,136.4,136.34,10.47]
[1642529401831,11.045,136.4,136.34,10.47]
[1642529402031,10.38656814,136.4,136.3,10.47]
[1642529402234,6.0,136.39,136.3,10.47]
[1642529402432,13.9367,136.38,136.28,37.78469397]
[1642529402632,6.0,136.37,136.28,37.78469397]
[1642529402834,2.934,136.36,136.28,37.78469397]
[1642529403035,6.0,136.35,136.29,13.404]
[1642529403434,17.0077,136.35,136.29,10.47]
[1642529403636,2.934,136.34,136.29,10.47]
[1642529403834,3.184,136.34,136.29,10.47]
[1642529404035,6.0,136.33,136.29,10.47]
[1642529404438,2.934,136.35,136.29,10.47]
[1642529404636,2.934,136.37,136.29,10.47]
[1642529404843,9.184,136.37,136.29,10.47]
[1642529405037,9.184,136.37,136.3,0.25]
[1642529405237,3.184,136.37,136.3,0.25]
[1642529406538,6.0,136.36,136.3,0.25]
[1642529406838,17.0067,136.36,136.3,0.25]
[1642529407441,17.0067,136.36,136.29,0.25]
[1642529407639,8.934,136.36,136.29,0.25]
[1642529407840,6.0,136.36,136.3,1.78905272]
[1642529408041,6.0,136.39,136.3,1.78905272]
[1642529408240,6.0,136.39,136.31,51.64151065]
[1642529408540,8.932,136.4,136.31,51.64151065]
[1642529408739,19.9351,136.4,136.31,51.64151065]
[1642529408940,19.9351,136.4,136.31,10.72]
[1642529409944,0.25,136.39,136.32,47.43912347]
[1642529410140,13.9369,136.38,136.33,0.25]
[1642529410641,23.2338,136.41,136.33,0.25]
[1642529410842,23.2338,136.41,136.33,2.03905272]
[1642529411558,2.932,136.43,136.33,2.03905272]
[1642529411741,0.25,136.42,136.33,2.03905272]
[1642529411942,2.932,136.43,136.33,2.03905272]
[1642529412143,2.932,136.44,136.34,10.47]
[1642529412344,2.932,136.46,136.36,49.21644527]
[1642529412550,6.0,136.45,136.37,16.47]
[1642529412744,6.0,136.45,136.37,16.98]
[1642529412946,6.0,136.46,136.37,18.76905272]
[1642529413544,6.0,136.46,136.37,29.76615272]
[1642529413747,6.0,136.46,136.39,39.76236225]
[1642529413953,6.0,136.46,136.39,50.23236225]
[1642529414152,6.0,136.46,136.4,0.25]
[1642529414763,302.02465435,136.47,136.4,11.2446]
[1642529414950,302.02465435,136.47,136.41,1.78905272]
[1642529415179,129.25082237,136.49,136.42,0.25]
[1642529415377,129.25082237,136.49,136.43,83.71]
[1642529415578,129.25082237,136.49,136.44,6.0]
[1642529415776,129.25082237,136.49,136.44,50.91682735]
[1642529415977,129.25082237,136.49,136.45,10.47]
[1642529416179,129.25082237,136.49,136.46,0.25]
[1642529416380,129.25082237,136.49,136.47,0.5]
[1642529416777,129.25082237,136.49,136.48,40.25083045]
[1642529417178,8.75906199,136.55,136.48,51.49003045]
[1642529417578,8.75906199,136.55,136.49,0.25]
[1642529417579,5.82806199,136.55,136.49,0.25]
[1642529418179,2.928,136.56,136.49,0.25]
[1642529418381,283.18240516,136.57,136.49,0.25]
[1642529418579,44.53395919,136.55,136.48,40.25083045]
[1642529418784,2.93,136.54,136.48,40.25083045]
[1642529418982,8.93,136.54,136.48,40.25083045]
[1642529420781,8.93,136.54,136.49,0.25]
[1642529421589,8.93,136.54,136.47,10.47]
[1642529421782,0.25,136.53,136.47,10.47]
[1642529421984,2.93,136.52,136.47,10.47]
[1642529422383,2.93,136.53,136.48,41.87849658]
[1642529422990,2.93,136.53,136.49,0.25]
[1642529424587,44.75934881,136.52,136.49,0.25]
[1642529424791,5.56439993,136.51,136.49,0.25]
[1642529424987,5.56439993,136.51,136.48,0.25]
[1642529425388,5.56439993,136.51,136.49,10.97]
[1642529425589,5.56439993,136.51,136.49,10.47]
[1642529425788,2.93,136.5,136.43,6.0]
[1642529425986,39.64184425,136.49,136.45,10.47]
[1642529426194,39.64184425,136.49,136.43,39.52480539]
[1642529426988,39.64184425,136.49,136.44,0.25]
[1642529427188,10.9932,136.52,136.44,0.25]
[1642529427389,2.93,136.51,136.44,0.25]
[1642529427589,2.93,136.53,136.45,10.47]
[1642529427792,2.93,136.53,136.46,0.25]
[1642529427991,6.0,136.54,136.46,10.72]
[1642529428192,6.0,136.54,136.47,122.31487541]
[1642529428391,6.0,136.54,136.47,133.30437541]
[1642529428691,2.93,136.56,136.48,12.50905272]
[1642529428892,27.8475,136.59,136.48,18.50905272]
[1642529429191,6.0,136.58,136.49,1.78905272]
[1642529429392,55.42125339,136.58,136.5,55.57285575]
[1642529429593,55.42125339,136.58,136.5,55.82285575]
[1642529429796,6.0,136.58,136.5,56.08285575]
[1642529429991,6.0,136.58,136.5,66.80825575]
[1642529430191,3.178,136.57,136.5,66.80825575]
[1642529430591,6.0,136.56,136.5,55.82285575]
[1642529430795,2.928,136.55,136.5,10.72]
[1642529431693,44.57023935,136.54,136.5,10.72]
[1642529433198,2.928,136.55,136.5,10.72]
[1642529433399,8.928,136.56,136.5,10.72]
[1642529434331,8.928,136.56,136.51,43.53742307]
[1642529434532,8.928,136.56,136.5,0.25]
[1642529435432,8.928,136.56,136.5,40.22468243]
[1642529435933,19.9175,136.56,136.5,0.25]
[1642529436133,0.25,136.55,136.46,10.47]
[1642529436331,2.93,136.54,136.44,10.47]
[1642529436531,6.0,136.53,136.44,10.47]
[1642529436830,2.93,136.52,136.45,48.78064442]
[1642529437033,6.0,136.51,136.45,48.78064442]
[1642529437431,44.90091484,136.53,136.45,48.78064442]
[1642529437630,2.93,136.54,136.45,48.78064442]
[1642529437832,2.93,136.54,136.46,10.9906]
[1642529438031,6.0,136.53,136.46,10.9906]
[1642529438232,6.0,136.53,136.47,0.25]
[1642529438435,2.93,136.52,136.47,0.25]
[1642529438733,6.0,136.53,136.46,73.49]
[1642529438932,6.0,136.53,136.46,83.96]
[1642529439133,6.0,136.54,136.48,10.9891]
[1642529439333,6.0,136.54,136.49,44.04533603]
[1642529439536,6.0,136.54,136.49,44.29533603]
[1642529439734,6.0,136.54,136.46,83.97]
[1642529439934,2.93,136.53,136.46,83.97]
[1642529440134,2.93,136.53,136.47,10.9901]
[1642529440338,2.93,136.53,136.47,21.4601]
[1642529440534,6.0,136.52,136.47,10.47]
[1642529440738,49.88410755,136.51,136.47,10.47]
[1642529440937,49.88410755,136.51,136.42,38.91087841]
[1642529441135,49.88410755,136.51,136.43,10.72]
[1642529441537,6.0,136.5,136.43,10.72]
[1642529441736,2.931,136.49,136.43,10.47]
[1642529441937,47.5528781,136.48,136.43,10.47]
[1642529442340,47.5528781,136.48,136.43,21.4634]
[1642529442941,47.5528781,136.48,136.44,0.25]
[1642529443344,2.931,136.49,136.44,0.25]
[1642529443542,6.0,136.48,136.44,0.25]
[1642529444140,6.0,136.5,136.44,0.25]
[1642529444342,40.95562532,136.49,136.44,0.25]
[1642529444542,6.0,136.48,136.28,0.25]
[1642529444742,2.932,136.47,136.38,10.47]
[1642529444943,2.932,136.47,136.35,10.47]
[1642529445143,6.25,136.46,136.35,10.47]
[1642529445344,51.93004608,136.45,136.36,47.92382204]
[1642529445546,6.0,136.44,136.36,47.92382204]
[1642529445745,2.932,136.43,136.36,58.92312204]
[1642529445947,2.932,136.43,136.36,132.16312204]
[1642529446248,6.0,136.44,136.37,10.72]
[1642529446751,6.0,136.44,136.37,10.98]
[1642529446946,6.0,136.44,136.39,10.9961]
[1642529447152,6.0,136.44,136.37,10.72]
[1642529447553,46.12401494,136.43,136.37,10.72]
[1642529448150,2.932,136.45,136.37,10.72]
[1642529448353,6.0,136.44,136.37,10.72]
[1642529448553,6.0,136.44,136.38,10.9976]
[1642529448757,6.0,136.44,136.39,0.25]
[1642529449052,47.06813911,136.45,136.39,0.25]
[1642529449958,47.06813911,136.45,136.38,0.25]
[1642529450558,47.06813911,136.45,136.39,10.9971]
[1642529450758,58.06613911,136.45,136.38,0.25]
[1642529450958,2.932,136.44,136.38,0.25]
[1642529451361,6.0,136.43,136.38,0.25]
[1642529451960,36.85201321,136.42,136.38,0.25]
[1642529452161,36.85201321,136.42,136.33,36.6632]
[1642529452363,9.182,136.41,136.31,24.9325]
[1642529452560,9.182,136.41,136.32,10.47]
[1642529452783,9.182,136.41,136.33,10.47]
[1642529454188,9.182,136.41,136.34,38.32301127]
[1642529454588,37.57167405,136.39,136.33,10.47]
[1642529454789,2.932,136.38,136.33,10.47]
[1642529454993,8.932,136.38,136.33,10.47]
[1642529455591,19.9357,136.38,136.33,10.47]
[1642529457395,19.9357,136.38,136.31,11.003]
[1642529457597,0.25,136.37,136.3,10.47]
[1642529457795,2.932,136.36,136.31,0.25]
[1642529457996,6.0,136.35,136.31,0.25]
[1642529458501,45.38149179,136.35,136.31,0.25]
[1642529458897,45.38149179,136.35,136.3,0.25]
[1642529459497,45.38149179,136.35,136.28,10.47]
[1642529459701,3.184,136.34,136.26,10.47]
[1642529460098,6.0,136.33,136.26,10.47]
[1642529460398,46.62798059,136.32,136.26,45.4253314]
[1642529460599,43.69398059,136.32,136.26,56.4327314]
[1642529460798,0.25,136.31,136.26,45.4253314]
[1642529461005,43.69398059,136.32,136.26,45.4253314]
[1642529461006,2.935,136.3,136.26,45.4253314]
[1642529461297,2.935,136.31,136.26,45.4253314]